fUST/lending_fUST_20241111
["ID","MTS","AMOUNT","RATE_DAILY","PERIOD"]
[341863286,1731261036983,-500.0,0.00024657,2]
[341863287,1731261036992,-500.0,0.00024657,2]
[341863288,1731261037002,-500.0,0.00024657,2]
[341863290,1731261037011,-500.0,0.00024657,2]
[341863292,1731261037021,-500.0,0.00024657,2]
[341863294,1731261037031,-500.0,0.00024657,2]
[341863296,1731261037041,-500.0,0.00024657,2]
[341863298,1731261037051,-500.0,0.00024657,2]
[341863300,1731261037061,-378.2928583,0.00024657,2]
[341863302,1731261037070,-500.0,0.00024657,2]
[341863304,1731261037080,-500.0,0.00024657,2]
[341863306,1731261037089,-463.706261,0.00024657,2]
[341863308,1731261037098,-500.0,0.00024657,2]
[341863310,1731261037107,-500.0,0.00024657,2]
[341863312,1731261037117,-500.0,0.00024657,2]
[341863314,1731261037126,-500.0,0.00024657,2]
[341863316,1731261037136,-500.0,0.00024657,2]
[341863318,1731261037145,-500.0,0.00024657,2]
[341863320,1731261037155,-500.0,0.00024657,2]
[341863322,1731261037164,-500.0,0.00024657,2]
[341863324,1731261037174,-500.0,0.00024657,2]
[341863326,1731261037184,-500.0,0.00024657,2]
[341863328,1731261037193,-500.0,0.00024657,2]
[341863330,1731261037203,-500.0,0.00024657,2]
[341863332,1731261037215,-500.0,0.00024657,2]
[341863334,1731261037224,-519.27,0.00024657,2]
[341863336,1731261037234,-585.53,0.00024657,2]
[341863338,1731261037244,-500.0,0.00024657,2]
[341863340,1731261037254,-500.0,0.00024657,2]
[341863342,1731261037263,-500.0,0.00024657,2]
[341863344,1731261037273,-500.0,0.00024657,2]
[341863346,1731261037285,-500.0,0.00024657,2]
[341863348,1731261037295,-500.0,0.00024657,2]
[341863350,1731261037305,-500.0,0.00024657,2]
[341863352,1731261037314,-500.0,0.00024657,2]
[341863354,1731261037323,-235.81333122,0.00024657,2]
[341863356,1731261037332,-500.0,0.00024657,2]
[341863358,1731261037342,-500.0,0.00024657,2]
[341863360,1731261037351,-500.0,0.00024657,2]
[341863362,1731261037360,-500.0,0.00024657,2]
[341863364,1731261037370,-500.0,0.00024657,2]
[341863366,1731261037380,-500.0,0.00024657,2]
[341863368,1731261037389,-302.76516271,0.00024657,2]
[341863370,1731261037399,-500.0,0.00024657,2]
[341863372,1731261037408,-500.0,0.00024657,2]
[341863374,1731261037418,-500.0,0.00024657,2]
[341863376,1731261037427,-500.0,0.00024657,2]
[341863378,1731261037437,-329.43467224,0.00024657,2]
[341863380,1731261037446,-500.0,0.00024657,2]
[341863382,1731261037455,-500.0,0.00024657,2]
[341863384,1731261037464,-500.0,0.00024657,2]
[341863386,1731261037473,-500.0,0.00024657,2]
[341863387,1731261037483,-500.0,0.00024657,2]
[341863389,1731261037492,-508.80888844,0.00024657,2]
[341863391,1731261037502,-500.0,0.00024657,2]
[341863393,1731261037510,-500.0,0.00024657,2]
[341863395,1731261037520,-500.0,0.00024657,2]
[341863397,1731261037530,-500.0,0.00024657,2]
[341863399,1731261037539,-500.0,0.00024657,2]
[341863401,1731261037549,-500.0,0.00024657,2]
[341863403,1731261037558,-500.0,0.00024657,2]
[341863405,1731261037567,-500.0,0.00024657,2]
[341863407,1731261037577,-616.19,0.00024657,2]
[341863409,1731261037586,-500.0,0.00024657,2]
[341863411,1731261037595,-500.0,0.00024657,2]
[341863413,1731261037604,-696.77,0.00024657,2]
[341863415,1731261037614,-608.32,0.00024657,2]
[341863417,1731261037623,-453.87898042,0.00024657,2]
[341863419,1731261037632,-408.54176126,0.00024657,2]
[341863421,1731261037641,-2336.0,0.00024657,2]
[341863423,1731261037651,-500.0,0.00024657,2]
[341863425,1731261037660,-500.0,0.00024657,2]
[341863427,1731261037669,-500.0,0.00024657,2]
[341863429,1731261037678,-500.0,0.00024657,2]
[341863431,1731261037687,-500.0,0.00024657,2]
[341863433,1731261037696,-500.0,0.00024657,2]
[341863435,1731261037706,-905.19,0.00024657,2]
[341863437,1731261037716,-500.0,0.00024657,2]
[341863439,1731261037725,-500.0,0.00024657,2]
[341863441,1731261037735,-500.0,0.00024657,2]
[341863443,1731261037744,-500.0,0.00024657,2]
[341863445,1731261037753,-500.0,0.00024657,2]
[341863447,1731261037763,-500.0,0.00024657,2]
[341863449,1731261037773,-500.0,0.00024657,2]
[341863452,1731261037784,-500.0,0.00024657,2]
[341863454,1731261037794,-500.0,0.00024657,2]
[341863456,1731261037803,-500.0,0.00024657,2]
[341863458,1731261037813,-1176.26,0.00024657,2]
[341863460,1731261037823,-500.0,0.00024657,2]
[341863462,1731261037832,-500.0,0.00024657,2]
[341863464,1731261037841,-500.0,0.00024657,2]
[341863466,1731261037851,-1863.89,0.00024657,2]
[341863468,1731261037860,-500.0,0.00024657,2]
[341863470,1731261037870,-4881.7,0.00024657,2]
[341863471,1731261037879,-515.84751369,0.00024657,2]
[341863474,1731261037888,-500.0,0.00024657,2]
[341863476,1731261037900,-500.0,0.00024657,2]
[341863478,1731261037913,-500.0,0.00024657,2]
[341863481,1731261037925,-500.0,0.00024657,2]
[341863483,1731261037938,-500.0,0.00024657,2]
[341863485,1731261037950,-590.13,0.00024657,2]
[341863487,1731261037962,-500.0,0.00024657,2]
[341863490,1731261037972,-500.0,0.00024657,2]
[341863492,1731261037983,-924.85,0.00024657,2]
[341863494,1731261037995,-500.0,0.00024657,2]
[341863496,1731261038007,-500.0,0.00024657,2]
[341863498,1731261038017,-500.0,0.00024657,2]
[341863501,1731261038029,-9841.61,0.00024657,2]
[341863503,1731261038041,-508.39,0.00024657,2]
[341863505,1731261038053,-500.0,0.00024657,2]
[341863507,1731261038064,-500.0,0.00024657,2]
[341863509,1731261038076,-1125.12,0.00024657,2]
[341863512,1731261038088,-200.0,0.00024657,2]
[341863515,1731261038100,-585.36,0.00024657,2]
[341863517,1731261038112,-315.68212952,0.00024657,2]
[341863519,1731261038124,-500.0,0.00024657,2]
[341863522,1731261038135,-500.0,0.00024657,2]
[341863524,1731261038147,-598.95,0.00024657,2]
[341863526,1731261038159,-500.0,0.00024657,2]
[341863529,1731261038181,-500.0,0.00024657,2]
[341863532,1731261038197,-500.0,0.00024657,2]
[341863535,1731261038214,-3867.86,0.00024657,2]
[341863537,1731261038229,-500.0,0.00024657,2]
[341863539,1731261038241,-913.93,0.00024657,2]
[341863542,1731261038255,-500.0,0.00024657,2]
[341863544,1731261038266,-500.0,0.00024657,2]
[341863546,1731261038276,-500.0,0.00024657,2]
[341863548,1731261038289,-500.0,0.00024657,2]
[341863550,1731261038301,-1087.74,0.00024657,2]
[341863553,1731261038314,-500.0,0.00024657,2]
[341863555,1731261038326,-500.0,0.00024657,2]
[341863557,1731261038339,-500.0,0.00024657,2]
[341863561,1731261038352,-500.0,0.00024657,2]
[341863563,1731261038365,-500.0,0.00024657,2]
[341863566,1731261038379,-934.54809582,0.00024657,2]
[341863569,1731261038405,-83.88190418,0.00024657,2]
[341863572,1731261038417,-1897.28,0.00024657,2]
[341863574,1731261038430,-199.64809582,0.00024657,2]
[341863618,1731261038879,-300.35190418,0.00024657,2]
[341863619,1731261038890,-89.56309631,0.00024657,2]
[341863621,1731261038905,-424.59021445,0.00024657,2]
[341863623,1731261038916,-174.2602354,0.00024657,2]
[341863625,1731261038930,-325.7397646,0.00024657,2]
[341863628,1731261038942,-757.85,0.00024657,2]
[341863630,1731261038953,-761.56,0.00024657,2]
[341863632,1731261038964,-261.00332627,0.00024657,2]
[341863634,1731261038978,-238.99667373,0.00024657,2]
[341863637,1731261038990,-500.0,0.00024657,2]
[341863639,1731261039000,-672.28,0.00024657,2]
[341863641,1731261039011,-648.46,0.00024657,2]
[341863643,1731261039022,-500.0,0.00024657,2]
[341863645,1731261039036,-500.0,0.00024657,2]
[341863647,1731261039046,-500.0,0.00024657,2]
[341863649,1731261039057,-420.0,0.00024794,2]
[341863652,1731261039068,-1000.0,0.00024831,2]
[341863654,1731261039079,-405.869838,0.00024835,2]
[341863655,1731261039089,-500.0,0.00024931,2]
[341863656,1731261039100,-500.0,0.00024931,2]
[341863657,1731261039110,-500.0,0.00024931,2]
[341863658,1731261039120,-500.0,0.00024931,2]
[341863659,1731261039130,-500.0,0.00024931,2]
[341863660,1731261039140,-500.0,0.00024931,2]
[341863661,1731261039150,-500.0,0.00024931,2]
[341863662,1731261039161,-500.0,0.00024931,2]
[341863663,1731261039171,-423.81987317,0.00024931,2]
[341863664,1731261039182,-500.0,0.00024931,2]
[341863665,1731261039192,-500.0,0.00024931,2]
[341863666,1731261039203,-500.0,0.00024931,2]
[341863667,1731261039219,-500.0,0.00024931,2]
[341863669,1731261039230,-500.0,0.00024931,2]
[341863671,1731261039241,-500.0,0.00024931,2]
[341863672,1731261039253,-500.0,0.00024931,2]
[341863674,1731261039264,-500.0,0.00024931,2]
[341863676,1731261039275,-500.0,0.00024931,2]
[341863678,1731261039292,-500.0,0.00024931,2]
[341863680,1731261039302,-500.0,0.00024931,2]
[341863682,1731261039312,-385.36990518,0.00024931,2]
[341863684,1731261039323,-500.0,0.00024931,2]
[341863686,1731261039333,-519.27,0.00024931,2]
[341863688,1731261039343,-585.53,0.00024931,2]
[341863690,1731261039354,-500.0,0.00024931,2]
[341863692,1731261039364,-500.0,0.00024931,2]
[341863695,1731261039376,-500.0,0.00024931,2]
[341863697,1731261039386,-500.0,0.00024931,2]
[341863699,1731261039397,-500.0,0.00024931,2]
[341863701,1731261039407,-500.0,0.00024931,2]
[341863703,1731261039418,-500.0,0.00024931,2]
[341863705,1731261039428,-500.0,0.00024931,2]
[341863708,1731261039439,-500.0,0.00024931,2]
[341863710,1731261039449,-500.0,0.00024931,2]
[341863712,1731261039460,-500.0,0.00024931,2]
[341863714,1731261039471,-500.0,0.00024931,2]
[341863716,1731261039482,-500.0,0.00024931,2]
[341863718,1731261039493,-500.0,0.00024931,2]
[341863721,1731261039503,-500.0,0.00024931,2]
[341863723,1731261039512,-500.0,0.00024931,2]
[341863725,1731261039523,-500.0,0.00024931,2]
[341863727,1731261039538,-500.0,0.00024931,2]
[341863729,1731261039548,-500.0,0.00024931,2]
[341863731,1731261039558,-500.0,0.00024931,2]
[341863733,1731261039569,-500.0,0.00024931,2]
[341863736,1731261039579,-696.77,0.00024931,2]
[341863737,1731261039590,-608.32,0.00024931,2]
[341863738,1731261039601,-380.73,0.00024931,2]
[341863739,1731261039611,-500.0,0.00024931,2]
[341863740,1731261039622,-500.0,0.00024931,2]
[341863741,1731261039632,-500.0,0.00024931,2]
[341863742,1731261039643,-500.0,0.00024931,2]
[341863743,1731261039654,-905.19,0.00024931,2]
[341863744,1731261039665,-500.0,0.00024931,2]
[341863745,1731261039675,-500.0,0.00024931,2]
[341863746,1731261039685,-500.0,0.00024931,2]
[341863747,1731261039694,-500.0,0.00024931,2]
[341863748,1731261039703,-500.0,0.00024931,2]
[341863749,1731261039712,-500.0,0.00024931,2]
[341863750,1731261039721,-500.0,0.00024931,2]
[341863751,1731261039733,-500.0,0.00024931,2]
[341863752,1731261039742,-1176.26,0.00024931,2]
[341863753,1731261039752,-500.0,0.00024931,2]
[341863754,1731261039762,-500.0,0.00024931,2]
[341863755,1731261039937,-308.16555375,0.00024931,2]
[341863756,1731261039948,-1863.89,0.00024931,2]
[341863757,1731261039957,-413.10452717,0.00024931,2]
[341863758,1731261039967,-4881.7,0.00024931,2]
[341863759,1731261039976,-500.0,0.00024931,2]
[341863760,1731261039985,-500.0,0.00024931,2]
[341863761,1731261039994,-500.0,0.00024931,2]
[341863762,1731261040003,-500.0,0.00024931,2]
[341863763,1731261040012,-250.763603,0.00024931,2]
[341863764,1731261040021,-590.13,0.00024931,2]
[341863765,1731261040033,-500.0,0.00024931,2]
[341863766,1731261040042,-500.0,0.00024931,2]
[341863767,1731261040052,-924.85,0.00024931,2]
[341863768,1731261040061,-500.0,0.00024931,2]
[341863769,1731261040071,-500.0,0.00024931,2]
[341863770,1731261040080,-500.0,0.00024931,2]
[341863771,1731261040090,-9841.61,0.00024931,2]
[341863772,1731261040099,-508.39,0.00024931,2]
[341863773,1731261040108,-500.0,0.00024931,2]
[341863774,1731261040117,-1125.12,0.00024931,2]
[341863775,1731261040126,-585.36,0.00024931,2]
[341863776,1731261040135,-598.95,0.00024931,2]
[341863777,1731261040144,-500.0,0.00024931,2]
[341863778,1731261040154,-500.0,0.00024931,2]
[341863779,1731261040163,-3867.86,0.00024931,2]
[341863780,1731261040173,-500.0,0.00024931,2]
[341863781,1731261040182,-913.93,0.00024931,2]
[341863783,1731261040191,-500.0,0.00024931,2]
[341863784,1731261040200,-500.0,0.00024931,2]
[341863785,1731261040212,-500.0,0.00024931,2]
[341863786,1731261040223,-1087.74,0.00024931,2]
[341863787,1731261040232,-500.0,0.00024931,2]
[341863788,1731261040242,-419.80843061,0.00024931,2]
[341863789,1731261040251,-478.57877211,0.00024931,2]
[341863790,1731261040261,-500.0,0.00024931,2]
[341863791,1731261040271,-500.0,0.00024931,2]
[341863792,1731261040283,-1018.43,0.00024931,2]
[341863793,1731261040294,-1897.28,0.00024931,2]
[341863794,1731261040303,-500.0,0.00024931,2]
[341863795,1731261040312,-500.0,0.00024931,2]
[341863796,1731261040321,-757.85,0.00024931,2]
[341863797,1731261040330,-761.56,0.00024931,2]
[341863798,1731261040339,-500.0,0.00024931,2]
[341863799,1731261040348,-672.28,0.00024931,2]
[341863800,1731261040358,-648.46,0.00024931,2]
[341863801,1731261040367,-500.0,0.00024931,2]
[341863802,1731261040376,-500.0,0.00024931,2]
[341863803,1731261040385,-4499.30322004,0.00024986,2]
[341863804,1731261040394,-171.0,0.00025,2]
[341863805,1731261040404,-280.15572792,0.00025105,2]
[341863806,1731261040414,-500.0,0.00025109,2]
[341863807,1731261040423,-500.0,0.00025109,2]
[341863808,1731261040433,-500.0,0.0002511,2]
[341863809,1731261040442,-500.0,0.0002511,2]
[341863810,1731261040451,-500.0,0.0002511,2]
[341863811,1731261040461,-441.49395627,0.00025204,2]
[341863812,1731261040469,-244.3623261,0.00025204,2]
[341863813,1731261040479,-363.96030813,0.00025204,2]
[341863814,1731261040488,-151.0,0.00025205,7]
[341863815,1731261040497,-245.239583,0.00025205,7]
[341863816,1731261040507,-245.239583,0.00025205,7]
[341863817,1731261040516,-151.0,0.00025205,7]
[341863818,1731261040525,-500.0,0.00025205,2]
[341863819,1731261040540,-151.0,0.00025205,7]
[341863820,1731261040550,-500.0,0.00025205,2]
[341863821,1731261040560,-500.0,0.00025205,2]
[341863822,1731261040571,-500.0,0.00025205,2]
[341863823,1731261040581,-500.0,0.00025205,2]
[341863824,1731261040591,-164.5318463,0.00025205,2]
[341863825,1731261040600,-500.0,0.00025205,2]
[341863826,1731261040610,-500.0,0.00025205,2]
[341863827,1731261040619,-500.0,0.00025205,2]
[341863828,1731261040628,-500.0,0.00025205,2]
[341863829,1731261040638,-553.62,0.00025205,2]
[341863830,1731261040647,-500.0,0.00025205,2]
[341863831,1731261040657,-500.0,0.00025205,2]
[341863832,1731261040666,-519.27,0.00025205,2]
[341863833,1731261040675,-585.53,0.00025205,2]
[341863834,1731261040685,-500.0,0.00025205,2]
[341863835,1731261040694,-500.0,0.00025205,2]
[341863836,1731261040704,-500.0,0.00025205,2]
[341863837,1731261040713,-500.0,0.00025205,2]
[341863838,1731261040722,-500.0,0.00025205,2]
[341863839,1731261040731,-546.56429739,0.00025205,2]
[341863840,1731261040740,-500.0,0.00025205,2]
[341863841,1731261040749,-500.0,0.00025205,2]
[341863842,1731261040758,-516.84,0.00025205,2]
[341863843,1731261040768,-500.0,0.00025205,2]
[341863844,1731261040777,-500.0,0.00025205,2]
[341863845,1731261040792,-500.0,0.00025205,2]
[341863846,1731261040802,-500.0,0.00025205,2]
[341863847,1731261040811,-500.0,0.00025205,2]
[341863848,1731261040821,-500.0,0.00025205,2]
[341863849,1731261040831,-696.77,0.00025205,2]
[341863850,1731261040840,-608.32,0.00025205,2]
[341863851,1731261040849,-500.0,0.00025205,2]
[341863852,1731261040859,-501.40095141,0.00025205,2]
[341863853,1731261040868,-500.0,0.00025205,2]
[341863854,1731261040877,-905.19,0.00025205,2]
[341863855,1731261040886,-500.0,0.00025205,2]
[341863856,1731261040895,-500.0,0.00025205,2]
[341863857,1731261040904,-500.0,0.00025205,2]
[341863859,1731261040914,-500.0,0.00025205,2]
[341863861,1731261040923,-500.0,0.00025205,2]
[341863864,1731261040932,-500.0,0.00025205,2]
[341863866,1731261040941,-500.0,0.00025205,2]
[341863868,1731261040951,-500.0,0.00025205,2]
[341863870,1731261040960,-1176.26,0.00025205,2]
[341863872,1731261040969,-500.0,0.00025205,2]
[341863874,1731261040978,-500.0,0.00025205,2]
[341863876,1731261040988,-1863.89,0.00025205,2]
[341863878,1731261040997,-4881.7,0.00025205,2]
[341863880,1731261041007,-500.0,0.00025205,2]
[341863882,1731261041016,-500.0,0.00025205,2]
[341863884,1731261041025,-500.0,0.00025205,2]
[341863886,1731261041038,-500.0,0.00025205,2]
[341863888,1731261041048,-590.13,0.00025205,2]
[341863889,1731261041057,-500.0,0.00025205,2]
[341863890,1731261041067,-500.0,0.00025205,2]
[341863891,1731261041076,-924.85,0.00025205,2]
[341863892,1731261041086,-479.40914242,0.00025205,2]
[341863893,1731261041096,-500.0,0.00025205,2]
[341863894,1731261041105,-500.0,0.00025205,2]
[341863895,1731261041115,-9841.61,0.00025205,2]
[341863896,1731261041124,-508.39,0.00025205,2]
[341863897,1731261041134,-611.71064487,0.00025205,2]
[341863898,1731261041143,-1125.12,0.00025205,2]
[341863899,1731261041152,-585.36,0.00025205,2]
[341863900,1731261041161,-598.95,0.00025205,2]
[341863901,1731261041172,-500.0,0.00025205,2]
[341863902,1731261041181,-500.0,0.00025205,2]
[341863903,1731261041191,-3867.86,0.00025205,2]
[341863904,1731261041200,-500.0,0.00025205,2]
[341863905,1731261041211,-913.93,0.00025205,2]
[341863906,1731261041223,-500.0,0.00025205,2]
[341863907,1731261041233,-500.0,0.00025205,2]
[341863908,1731261041242,-346.32231777,0.00025205,2]
[341863909,1731261041251,-1087.74,0.00025205,2]
[341863910,1731261041262,-500.0,0.00025205,2]
[341863911,1731261041271,-1018.43,0.00025205,2]
[341863912,1731261041281,-1897.28,0.00025205,2]
[341863913,1731261041292,-500.0,0.00025205,2]
[341863914,1731261041301,-500.0,0.00025205,2]
[341863915,1731261041310,-757.85,0.00025205,2]
[341863916,1731261041320,-500.0,0.00025205,2]
[341863917,1731261041329,-761.56,0.00025205,2]
[341863918,1731261041338,-672.28,0.00025205,2]
[341863919,1731261041347,-648.46,0.00025205,2]
[341863920,1731261041356,-500.0,0.00025205,2]
[341863921,1731261041365,-275.957492,0.00025479,7]
[341863922,1731261041374,-275.957492,0.00025479,7]
[341863923,1731261041383,-225.251945,0.00025479,7]
[341863925,1731261041393,-225.251945,0.00025479,7]
[341863927,1731261041402,-440.60899483,0.00025479,2]
[341863929,1731261041411,-500.0,0.00025479,2]
[341863930,1731261041421,-500.0,0.00025479,2]
[341863933,1731261041430,-500.0,0.00025479,2]
[341863935,1731261041439,-500.0,0.00025479,2]
[341863936,1731261041449,-500.0,0.00025479,2]
[341863938,1731261041458,-500.0,0.00025479,2]
[341863940,1731261041467,-519.27,0.00025479,2]
[341863942,1731261041476,-585.53,0.00025479,2]
[341863944,1731261041485,-500.0,0.00025479,2]
[341863946,1731261041495,-500.0,0.00025479,2]
[341863948,1731261041504,-500.0,0.00025479,2]
[341863950,1731261041513,-500.0,0.00025479,2]
[341863952,1731261041522,-500.0,0.00025479,2]
[341863954,1731261041533,-500.0,0.00025479,2]
[341863956,1731261041542,-500.0,0.00025479,2]
[341863958,1731261041551,-500.0,0.00025479,2]
[341863960,1731261041560,-500.0,0.00025479,2]
[341863962,1731261041570,-696.77,0.00025479,2]
[341863964,1731261041579,-608.32,0.00025479,2]
[341863966,1731261041588,-905.19,0.00025479,2]
[341863968,1731261041598,-500.0,0.00025479,2]
[341863969,1731261041607,-500.0,0.00025479,2]
[341863971,1731261041616,-500.0,0.00025479,2]
[341863973,1731261041626,-500.0,0.00025479,2]
[341863975,1731261041636,-500.0,0.00025479,2]
[341863977,1731261041646,-500.0,0.00025479,2]
[341863980,1731261041655,-500.0,0.00025479,2]
[341863982,1731261041663,-585.93,0.00025479,2]
[341863984,1731261041672,-1176.26,0.00025479,2]
[341863986,1731261041681,-500.0,0.00025479,2]
[341863987,1731261041690,-573.5697551,0.00025479,2]
[341863990,1731261041699,-1863.89,0.00025479,2]
[341863992,1731261041709,-4881.7,0.00025479,2]
[341863994,1731261041720,-500.0,0.00025479,2]
[341863996,1731261041732,-500.0,0.00025479,2]
[341863998,1731261041742,-500.0,0.00025479,2]
[341864000,1731261041752,-590.13,0.00025479,2]
[341864002,1731261041761,-500.0,0.00025479,2]
[341864004,1731261041771,-500.0,0.00025479,2]
[341864006,1731261041780,-924.85,0.00025479,2]
[341864008,1731261041791,-332.17793494,0.00025479,2]
[341864010,1731261041800,-500.0,0.00025479,2]
[341864012,1731261041809,-9841.61,0.00025479,2]
[341864014,1731261041820,-508.39,0.00025479,2]
[341864016,1731261041831,-1125.12,0.00025479,2]
[341864018,1731261041841,-585.36,0.00025479,2]
[341864019,1731261041851,-598.95,0.00025479,2]
[341864022,1731261041860,-500.0,0.00025479,2]
[341864024,1731261041871,-500.0,0.00025479,2]
[341864026,1731261041880,-3867.86,0.00025479,2]
[341864028,1731261041890,-500.0,0.00025479,2]
[341864030,1731261041899,-913.93,0.00025479,2]
[341864032,1731261041908,-500.0,0.00025479,2]
[341864034,1731261041917,-500.0,0.00025479,2]
[341864036,1731261041926,-1087.74,0.00025479,2]
[341864038,1731261041936,-500.0,0.00025479,2]
[341864040,1731261041946,-1018.43,0.00025479,2]
[341864042,1731261041955,-1897.28,0.00025479,2]
[341864044,1731261041964,-500.0,0.00025479,2]
[341864045,1731261041973,-540.26,0.00025479,2]
[341864046,1731261041982,-757.85,0.00025479,2]
[341864047,1731261041991,-500.0,0.00025479,2]
[341864048,1731261042000,-761.56,0.00025479,2]
[341864050,1731261042010,-672.28,0.00025479,2]
[341864052,1731261042019,-648.46,0.00025479,2]
[341864053,1731261042029,-500.0,0.00025479,2]
[341864055,1731261042041,-280.15572788,0.00025529,2]
[341864057,1731261042050,-275.957492,0.00025753,7]
[341864059,1731261042060,-275.957492,0.00025753,7]
[341864062,1731261042071,-151.0,0.00025753,7]
[341864064,1731261042080,-245.239583,0.00025753,7]
[341864066,1731261042090,-245.239583,0.00025753,7]
[341864068,1731261042100,-151.0,0.00025753,7]
[341864070,1731261042110,-225.251945,0.00025753,7]
[341864072,1731261042119,-225.251945,0.00025753,7]
[341864074,1731261042128,-151.0,0.00025753,7]
[341864076,1731261042137,-500.0,0.00025753,2]
[341864078,1731261042146,-500.0,0.00025753,2]
[341864080,1731261042156,-500.0,0.00025753,2]
[341864082,1731261042165,-500.0,0.00025753,2]
[341864084,1731261042174,-500.0,0.00025753,2]
[341864086,1731261042183,-500.0,0.00025753,2]
[341864088,1731261042193,-519.27,0.00025753,2]
[341864090,1731261042203,-585.53,0.00025753,2]
[341864092,1731261042213,-500.0,0.00025753,2]
[341864094,1731261042223,-500.0,0.00025753,2]
[341864096,1731261042232,-500.0,0.00025753,2]
[341864098,1731261042241,-500.0,0.00025753,2]
[341864100,1731261042252,-500.0,0.00025753,2]
[341864102,1731261042261,-500.0,0.00025753,2]
[341864104,1731261042270,-500.0,0.00025753,2]
[341864106,1731261042279,-500.0,0.00025753,2]
[341864108,1731261042293,-696.77,0.00025753,2]
[341864110,1731261042303,-608.32,0.00025753,2]
[341864111,1731261042312,-905.19,0.00025753,2]
[341864112,1731261042321,-500.0,0.00025753,2]
[341864113,1731261042330,-500.0,0.00025753,2]
[341864114,1731261042340,-500.0,0.00025753,2]
[341864115,1731261042349,-500.0,0.00025753,2]
[341864116,1731261042358,-500.0,0.00025753,2]
[341864117,1731261042367,-1176.26,0.00025753,2]
[341864118,1731261042376,-500.0,0.00025753,2]
[341864119,1731261042386,-1863.89,0.00025753,2]
[341864120,1731261042396,-4881.7,0.00025753,2]
[341864121,1731261042405,-500.0,0.00025753,2]
[341864122,1731261042415,-500.0,0.00025753,2]
[341864124,1731261042424,-500.0,0.00025753,2]
[341864126,1731261042434,-590.13,0.00025753,2]
[341864128,1731261042444,-500.0,0.00025753,2]
[341864130,1731261042454,-500.0,0.00025753,2]
[341864132,1731261042463,-924.85,0.00025753,2]
[341864134,1731261042473,-500.0,0.00025753,2]
[341864136,1731261042482,-9841.61,0.00025753,2]
[341864138,1731261042491,-508.39,0.00025753,2]
[341864140,1731261042500,-1125.12,0.00025753,2]
[341864142,1731261042510,-585.36,0.00025753,2]
[341864144,1731261042519,-598.95,0.00025753,2]
[341864146,1731261042528,-3867.86,0.00025753,2]
[341864148,1731261042540,-500.0,0.00025753,2]
[341864150,1731261042549,-913.93,0.00025753,2]
[341864152,1731261042558,-500.0,0.00025753,2]
[341864154,1731261042567,-1087.74,0.00025753,2]
[341864156,1731261042578,-500.0,0.00025753,2]
[341864158,1731261042586,-1018.43,0.00025753,2]
[341864160,1731261042596,-1897.28,0.00025753,2]
[341864162,1731261042606,-500.0,0.00025753,2]